{"text_format":"1","workbook":"xlsx","n_sheets":1,"sheets":["Sheet1"],"not_rendered":{"charts":0,"images":0,"macros":1,"external_links":0,"defined_names":0,"comments":0,"pivot_tables":0},"unopened":[],"bounds":{"document_bytes":16777216,"sheet_cells":100000,"rows_first":2000,"rows_last":500,"rows_between":2000,"halvings":0,"cell_chars":16384,"cell_head_chars":4096},"cells_cut":0,"cells_raw":0,"read":"whole","date_system":"1900"}

{"sheet":"Sheet1","index":0,"n_rows":8,"n_cols":49,"rows_kept":8,"cut":false,"hidden":false,"merged":[]}
[null,null,null,null,null,{"$f":"SUM(F3:F250)","v":5000},{"$f":"SUM(G3:G250)","v":0},0,200,370,0,0,400,0,0,0,0,0,0,0,0,0,0,310,6500,0,0,0,0,0,0,0,0,0,0,0,0,0,0,0,0,0,0,0,0,0,0,0,0]
["رقم السند","التاريخ","البيان","المبلغ","التوجية","احمد جمال","الرواتب","عهدة","اكراميات","خدمة موقع","مخزن السولار","بنزين الموقع","مواصلات","الصيانة","مصاريف نثرية","جراج السلام","عملية سيناء","عملية المحور","حفر مصرف بحر البقر","سلف المقاولين","تصفية المقاولين","مياه وكهرباء","معدات الشركة","سيارات الشركة","ايجار الهايكستب","ايجار طريق السويس","ايجار ترعة الطواري","م.مياه ترعة الطواري","اكراميات ترعة الطواري","كرتات ميزان الهايكستب","بدل ميزان الهايكستب","كرتات ميزان ترعة الطواري","بدل ميزان ترعة الطواري","اعاشة الهايكستب","اعاشة طريق السويس","اعاشة ترعة الطواري","المسجد"]
[null,"2020-01-01","اكراميات",200,"اكراميات",null,null,null,200]
[null,"2020-01-01","سيارات الشركة",310,"سيارات الشركة",null,null,null,null,null,null,null,null,null,null,null,null,null,null,null,null,null,null,310]
[null,"2020-01-01","صيانة سيارة تعمل بخدمة الموقع",370,"خدمة موقع",null,null,null,null,370]
[null,"2020-01-01","قيمة ايجار سيارة تعمل بالهايكستب",6500,"ايجار الهايكستب",null,null,null,null,null,null,null,null,null,null,null,null,null,null,null,null,null,null,null,6500]
[null,"2020-01-11","سلفة شخصية",5000,"احمد جمال",5000]
[null,null,null,400,"مواصلات",null,null,null,null,null,null,null,400]